fUST/lending_fUST_20240927
["ID","MTS","AMOUNT","RATE_DAILY","PERIOD"]
[339257271,1727409050693,-476.24941718,0.00020824,2]
[339257272,1727409050703,-164.243421,0.00020878,2]
[339257273,1727409050713,-152.79482226,0.00020899,2]
[339257274,1727409050724,-500.0,0.00020916,7]
[339257275,1727409050735,-500.0,0.00020916,7]
[339257276,1727409050745,-500.0,0.00020916,7]
[339257277,1727409050757,-647.81,0.00020916,7]
[339257278,1727409050766,-439.97,0.00020916,7]
[339257279,1727409050777,-513.37,0.00020916,7]
[339257280,1727409050786,-500.0,0.00020916,7]
[339257281,1727409050796,-500.0,0.00020916,7]
[339257282,1727409050805,-500.0,0.00020916,7]
[339257283,1727409050815,-500.0,0.00020916,7]
[339257284,1727409050824,-521.13,0.00020916,7]
[339257285,1727409050834,-151.0,0.00020942,2]
[339257286,1727409050843,-308.73225216,0.00020999,2]
[339257287,1727409050853,-500.0,0.00021,30]
[339257288,1727409050863,-500.0,0.00021,30]
[339257289,1727409050872,-500.0,0.00021,30]
[339257290,1727409050882,-500.0,0.00021,30]
[339257291,1727409050891,-500.0,0.00021,30]
[339257292,1727409050901,-891.82928336,0.00021,30]
[339257293,1727409050911,-4996.49053934,0.00021,5]
[339257294,1727409050921,-6009.15204001,0.00021,5]
[339257295,1727409051068,-102.16086957,0.00021,5]
[339257296,1727409051148,-1452.42328679,0.00021,5]
[339257297,1727409051169,-240.79415886,0.00021,5]
[339257298,1727409051179,-2500.0,0.00021,2]
[339257299,1727409051189,-527.15463473,0.00021,30]
[339257300,1727409051200,-514.9751445,0.00021,30]
[339257301,1727409051210,-500.0,0.00021,30]
[339257302,1727409051220,-500.0,0.00021,30]
[339257303,1727409051230,-500.0,0.00021,30]
[339257304,1727409051240,-500.0,0.00021,30]
[339257305,1727409051250,-500.0,0.00021,30]
[339257306,1727409051259,-500.0,0.00021,30]
[339257307,1727409051269,-500.0,0.00021,30]
[339257308,1727409051279,-500.0,0.00021,30]
[339257309,1727409051289,-502.18180867,0.00021,30]
[339257310,1727409051300,-501.66777924,0.00021,30]
[339257311,1727409051310,-500.0,0.00021,30]
[339257312,1727409051320,-500.0,0.00021,30]
[339257313,1727409051330,-500.0,0.00021,30]
[339257314,1727409051340,-500.0,0.00021,30]
[339257315,1727409051350,-501.30939348,0.00021,30]
[339257316,1727409051360,-500.0,0.00021,30]
[339257317,1727409051370,-500.0,0.00021,30]
[339257318,1727409051380,-500.0,0.00021,30]
[339257319,1727409051391,-500.0,0.00021,30]
[339257320,1727409051401,-500.0,0.00021,30]
[339257321,1727409051411,-500.0,0.00021,30]
[339257322,1727409051422,-500.0,0.00021,30]
[339257323,1727409051432,-500.0,0.00021,30]
[339257324,1727409051442,-500.0,0.00021,30]
[339257325,1727409051452,-500.0,0.00021,30]
[339257326,1727409051461,-500.0,0.00021,30]
[339257327,1727409051471,-500.0,0.00021,30]
[339257328,1727409051481,-500.0,0.00021,30]
[339257329,1727409051491,-500.0,0.00021,30]
[339257330,1727409051502,-500.0,0.00021,30]
[339257331,1727409051512,-790.89916317,0.00021,30]
[339257332,1727409051522,-500.0,0.00021,30]
[339257333,1727409051532,-500.0,0.00021,30]
[339257334,1727409051542,-500.0,0.00021,30]
[339257335,1727409051552,-500.0,0.00021,30]
[339257336,1727409051561,-500.0,0.00021,30]
[339257337,1727409051571,-607.21200268,0.00021,30]
[339257338,1727409051580,-500.0,0.00021,30]
[339257339,1727409051592,-500.0,0.00021,30]
[339257340,1727409051603,-500.0,0.00021,30]
[339257341,1727409051614,-500.0,0.00021,30]
[339257342,1727409051625,-500.0,0.00021,30]
[339257343,1727409051635,-500.0,0.00021,30]
[339257344,1727409051646,-500.0,0.00021,30]
[339257345,1727409051655,-500.0,0.00021,30]
[339257346,1727409051665,-500.0,0.00021,30]
[339257347,1727409051674,-722.55755898,0.00021,30]
[339257348,1727409051684,-500.0,0.00021,30]
[339257349,1727409051695,-500.0,0.00021,30]
[339257350,1727409051706,-500.0,0.00021,30]
[339257351,1727409051716,-500.0,0.00021,30]
[339257352,1727409051726,-500.0,0.00021,30]
[339257353,1727409051737,-500.0,0.00021,30]
[339257354,1727409051748,-500.0,0.00021,30]
[339257355,1727409051760,-500.0,0.00021,30]
[339257356,1727409051770,-500.0,0.00021,30]
[339257357,1727409051781,-500.0,0.00021,30]
[339257358,1727409051794,-500.0,0.00021,30]
[339257359,1727409051804,-600.0,0.00021,30]
[339257360,1727409051816,-500.0,0.00021,30]
[339257361,1727409051826,-500.0,0.00021,30]
[339257362,1727409051836,-600.0,0.00021,30]
[339257363,1727409051846,-500.0,0.00021,30]
[339257364,1727409051858,-500.0,0.00021,30]
[339257365,1727409051868,-500.0,0.00021,30]
[339257366,1727409051878,-500.0,0.00021,30]
[339257367,1727409051889,-600.0,0.00021,30]
[339257368,1727409051900,-500.0,0.00021,30]
[339257369,1727409051910,-500.0,0.00021,30]
[339257370,1727409051921,-600.0,0.00021,30]
[339257371,1727409051932,-900.0,0.00021,30]
[339257372,1727409051942,-675.71650789,0.00021,30]
[339257373,1727409051953,-600.0,0.00021,30]
[339257374,1727409051963,-600.0,0.00021,30]
[339257375,1727409051974,-600.0,0.00021,30]
[339257376,1727409051985,-600.0,0.00021,30]
[339257377,1727409051995,-600.0,0.00021,30]
[339257378,1727409052005,-600.0,0.00021,30]
[339257379,1727409052016,-600.0,0.00021,30]
[339257380,1727409052026,-600.0,0.00021,30]
[339257381,1727409052036,-803.87262183,0.00021,30]
[339257382,1727409052047,-151.0,0.00021,2]
[339257383,1727409052056,-246.802422,0.00021,2]
[339257384,1727409052065,-231.032917,0.00021,2]
[339257385,1727409052076,-231.032917,0.00021,2]
[339257386,1727409052088,-3000.0,0.00021,2]
[339257387,1727409052098,-151.0,0.00021,2]
[339257388,1727409052108,-151.0,0.00021,2]
[339257389,1727409052122,-254.477916,0.00021,2]
[339257390,1727409052134,-254.477916,0.00021,2]
[339257391,1727409052144,-151.0,0.00021,2]
[339257392,1727409052154,-151.0,0.00021,2]
[339257393,1727409052165,-150.0,0.00021,2]
[339257394,1727409052175,-253.870569,0.00021,2]
[339257395,1727409052185,-253.870569,0.00021,2]
[339257396,1727409052195,-309.045752,0.00021,2]
[339257397,1727409052205,-309.045752,0.00021,2]
[339257398,1727409052215,-151.0,0.00021,2]
[339257399,1727409052225,-151.0,0.00021,2]
[339257400,1727409052236,-223.592904,0.00021,2]
[339257401,1727409052246,-223.592904,0.00021,2]
[339257402,1727409052256,-500.0,0.00021,30]
[339257403,1727409052266,-600.0,0.00021,30]
[339257404,1727409052276,-500.0,0.00021,30]
[339257405,1727409052287,-500.0,0.00021,30]
[339257406,1727409052400,-500.0,0.00021,30]
[339257407,1727409052411,-500.0,0.00021,30]
[339257408,1727409052421,-500.0,0.00021,30]
[339257409,1727409052430,-500.0,0.00021,30]
[339257410,1727409052440,-500.0,0.00021,30]
[339257411,1727409052450,-511.65171381,0.00021,30]
[339257412,1727409052459,-501.80833123,0.00021,30]
[339257413,1727409052469,-511.65859393,0.00021,30]
[339257414,1727409052478,-500.0,0.00021,30]
[339257415,1727409052488,-504.42998189,0.00021,30]
[339257416,1727409052498,-500.0,0.00021,30]
[339257417,1727409052508,-882.01871696,0.00021,30]
[339257418,1727409052521,-500.0,0.00021,30]
[339257419,1727409052531,-500.0,0.00021,30]
[339257420,1727409052542,-500.0,0.00021,30]
[339257421,1727409052551,-500.0,0.00021,30]
[339257422,1727409052561,-500.0,0.00021,30]
[339257423,1727409052571,-500.0,0.00021,30]
[339257424,1727409052580,-500.0,0.00021,30]
[339257425,1727409052590,-500.0,0.00021,30]
[339257426,1727409052599,-500.0,0.00021,30]
[339257427,1727409052609,-500.0,0.00021,30]
[339257428,1727409052618,-500.0,0.00021,30]
[339257429,1727409052627,-500.0,0.00021,30]
[339257430,1727409052637,-500.0,0.00021,30]
[339257431,1727409052646,-500.0,0.00021,30]
[339257432,1727409052656,-500.0,0.00021,30]
[339257433,1727409052665,-500.0,0.00021,30]
[339257434,1727409052675,-499.3,0.00021,30]
[339257435,1727409052684,-500.0,0.00021,30]
[339257436,1727409052693,-503.72618512,0.00021,30]
[339257437,1727409052703,-500.0,0.00021,30]
[339257438,1727409052713,-500.0,0.00021,30]
[339257439,1727409052723,-559.82866608,0.00021,30]
[339257440,1727409052733,-500.0,0.00021,30]
[339257441,1727409052743,-500.0,0.00021,30]
[339257442,1727409052754,-500.0,0.00021,30]
[339257443,1727409052764,-500.0,0.00021,30]
[339257444,1727409052776,-500.0,0.00021,30]
[339257445,1727409052786,-154.74467129,0.00021,30]
[339257446,1727409052795,-500.0,0.00021,30]
[339257447,1727409052805,-500.0,0.00021,30]
[339257448,1727409052814,-939.9144285,0.00021,30]
[339257449,1727409052824,-500.0,0.00021,30]
[339257450,1727409052833,-500.0,0.00021,30]
[339257451,1727409052842,-500.0,0.00021,30]
[339257452,1727409052852,-500.0,0.00021,30]
[339257453,1727409052862,-500.0,0.00021,30]
[339257454,1727409052872,-500.0,0.00021,30]
[339257455,1727409052883,-500.0,0.00021,30]
[339257456,1727409052893,-500.0,0.00021,30]
[339257457,1727409052902,-500.0,0.00021,30]
[339257458,1727409052912,-500.0,0.00021,30]
[339257459,1727409052923,-500.0,0.00021,30]
[339257460,1727409052934,-500.0,0.00021,30]
[339257461,1727409052944,-500.0,0.00021,30]
[339257462,1727409052955,-500.0,0.00021,30]
[339257463,1727409052967,-500.0,0.00021,30]
[339257464,1727409052986,-500.0,0.00021,30]
[339257465,1727409052999,-500.0,0.00021,30]
[339257466,1727409053019,-500.0,0.00021,30]
[339257467,1727409053031,-500.0,0.00021,30]
[339257468,1727409053041,-500.0,0.00021,30]
[339257469,1727409053053,-500.0,0.00021,30]
[339257470,1727409053062,-500.0,0.00021,30]
[339257471,1727409053072,-500.0,0.00021,30]
[339257472,1727409053081,-500.0,0.00021,30]
[339257473,1727409053091,-500.0,0.00021,30]
[339257474,1727409053100,-500.0,0.00021,30]
[339257475,1727409053110,-500.0,0.00021,30]
[339257476,1727409053121,-504.39221637,0.00021,30]
[339257477,1727409053131,-276.8824371,0.00021,30]
[339257478,1727409053140,-510.77584455,0.00021,30]
[339257479,1727409053149,-500.0,0.00021,30]
[339257480,1727409053159,-546.55036028,0.00021,30]
[339257481,1727409053168,-500.0,0.00021,30]
[339257482,1727409053178,-500.0,0.00021,30]
[339257483,1727409053187,-500.0,0.00021,30]
[339257484,1727409053198,-500.0,0.00021,30]
[339257485,1727409053208,-500.0,0.00021,30]
[339257486,1727409053217,-500.0,0.00021,30]
[339257487,1727409053227,-600.0,0.00021,30]
[339257488,1727409053237,-600.0,0.00021,30]
[339257489,1727409053246,-500.0,0.00021,30]
[339257490,1727409053257,-600.0,0.00021,30]
[339257491,1727409053266,-500.0,0.00021,30]
[339257492,1727409053276,-508.1342584,0.00021,30]
[339257493,1727409053287,-500.0,0.00021,30]
[339257494,1727409053296,-500.0,0.00021,30]
[339257495,1727409053306,-154.74467129,0.00021,30]
[339257496,1727409053318,-600.0,0.00021,30]
[339257497,1727409053329,-500.0,0.00021,30]
[339257498,1727409053339,-500.0,0.00021,30]
[339257499,1727409053349,-500.0,0.00021,30]
[339257500,1727409053360,-500.0,0.00021,30]
[339257501,1727409053370,-600.0,0.00021,30]
[339257502,1727409053379,-500.0,0.00021,30]
[339257503,1727409053389,-500.0,0.00021,30]
[339257504,1727409053399,-600.0,0.00021,30]
[339257505,1727409053409,-600.0,0.00021,30]
[339257506,1727409053418,-500.0,0.00021,30]
[339257507,1727409053429,-499.3,0.00021,30]
[339257508,1727409053439,-500.0,0.00021,30]
[339257509,1727409053452,-500.0,0.00021,30]
[339257510,1727409053462,-600.0,0.00021,30]
[339257511,1727409053475,-500.0,0.00021,30]
[339257512,1727409053486,-600.0,0.00021,30]
[339257513,1727409053496,-500.0,0.00021,30]
[339257514,1727409053507,-600.0,0.00021,30]
[339257515,1727409053518,-600.0,0.00021,30]
[339257516,1727409053527,-600.0,0.00021,30]
[339257517,1727409053537,-600.0,0.00021,30]
[339257518,1727409053547,-3000.0,0.0002101,2]
[339257519,1727409053556,-3000.0,0.0002102,2]
[339257520,1727409053565,-3000.0,0.0002103,2]
[339257521,1727409053574,-3000.0,0.0002104,2]
[339257522,1727409053584,-3000.0,0.0002105,2]
[339257523,1727409053593,-360.0,0.0002106,2]
[339257524,1727409053602,-3000.0,0.0002106,2]
[339257525,1727409053611,-3000.0,0.0002107,2]
[339257526,1727409053620,-3000.0,0.0002108,2]
[339257527,1727409053629,-3000.0,0.0002109,2]
[339257528,1727409053638,-231.032917,0.00021095,2]
[339257529,1727409053647,-231.032917,0.00021095,2]
[339257530,1727409053657,-515.45,0.00021095,2]
[339257531,1727409053667,-500.0,0.00021095,2]
[339257532,1727409053676,-750.72,0.00021095,2]
[339257533,1727409053685,-1917.79,0.00021095,2]
[339257534,1727409053695,-1370.48,0.00021095,2]
[339257535,1727409053704,-1586.2,0.00021095,2]
[339257536,1727409053714,-1339.74,0.00021095,2]
[339257537,1727409053723,-707.96,0.00021095,2]
[339257538,1727409053733,-151.0,0.00021095,2]
[339257539,1727409053742,-151.0,0.00021095,2]
[339257540,1727409053754,-254.477916,0.00021095,2]
[339257541,1727409053763,-254.477926,0.00021095,2]
[339257542,1727409053773,-21817.09,0.00021095,2]
[339257543,1727409053783,-4192.57,0.00021095,2]
[339257544,1727409053792,-789.87979194,0.00021095,2]
[339257545,1727409053802,-151.0,0.00021095,2]
[339257546,1727409053812,-151.0,0.00021095,2]
[339257547,1727409053822,-229.64,0.00021095,2]
[339257548,1727409053834,-623.21,0.00021095,2]
[339257549,1727409053843,-500.0,0.00021095,2]
[339257550,1727409053853,-2432.81,0.00021095,2]
[339257551,1727409053862,-151.0,0.00021095,2]
[339257552,1727409053872,-2458.29,0.00021095,2]
[339257553,1727409053882,-500.0,0.00021095,2]
[339257554,1727409053893,-621.89,0.00021095,2]
[339257555,1727409053902,-223.592904,0.00021095,2]
[339257556,1727409053912,-223.592897,0.00021095,2]
[339257557,1727409053922,-862.2,0.00021095,2]
[339257558,1727409053932,-151.0,0.000211,2]
[339257559,1727409053942,-3000.0,0.000211,2]
[339257560,1727409053951,-3000.0,0.0002111,2]
[339257561,1727409053961,-253.870569,0.0002111,2]
[339257562,1727409053972,-253.870576,0.0002111,2]
[339257563,1727409053982,-309.045752,0.0002111,2]
[339257564,1727409053992,-309.045756,0.0002111,2]
[339257565,1727409054003,-284.818167,0.0002111,2]
[339257566,1727409054013,-3000.0,0.0002112,2]
[339257567,1727409054022,-3000.0,0.0002113,2]
[339257568,1727409054032,-3000.0,0.0002114,2]
[339257569,1727409054044,-3000.0,0.0002115,2]
[339257570,1727409054053,-3000.0,0.0002116,2]
[339257571,1727409054063,-3000.0,0.0002117,2]
[339257572,1727409054073,-3000.0,0.0002118,2]
[339257573,1727409054083,-3000.0,0.0002119,2]
[339257574,1727409054092,-500.0,0.00021191,7]
[339257575,1727409054101,-500.0,0.00021191,7]
[339257576,1727409054110,-500.0,0.00021191,7]
[339257577,1727409054123,-500.0,0.00021191,7]
[339257578,1727409054133,-151.0,0.00021192,2]
[339257579,1727409054143,-506.75742959,0.000212,2]
[339257580,1727409054155,-347.19,0.000212,2]
[339257581,1727409054165,-3000.0,0.000212,2]
[339257582,1727409054176,-3000.0,0.0002121,2]
[339257583,1727409054186,-3000.0,0.0002122,2]
[339257584,1727409054199,-2000.0,0.0002122,2]
[339257585,1727409054209,-250.0,0.00021221,2]
[339257586,1727409054220,-3000.0,0.0002123,2]
[339257587,1727409054230,-3000.0,0.0002124,2]
[339257588,1727409054241,-3000.0,0.0002125,2]
[339257589,1727409054252,-3000.0,0.0002126,2]
[339257590,1727409054262,-3000.0,0.0002127,2]
[339257591,1727409054271,-3000.0,0.0002128,2]
[339257592,1727409054281,-3000.0,0.0002129,2]
[339257593,1727409054290,-3000.0,0.000213,2]
[339257594,1727409054300,-3000.0,0.0002131,2]
[339257595,1727409054310,-3000.0,0.0002132,2]
[339257596,1727409054321,-3000.0,0.0002133,2]
[339257597,1727409054331,-609.73991382,0.00021339,3]
[339257598,1727409054341,-3000.0,0.0002134,2]
[339257599,1727409054352,-3000.0,0.0002135,2]
[339257600,1727409054362,-3000.0,0.0002136,2]
[339257601,1727409054371,-231.032917,0.00021369,2]
[339257602,1727409054380,-231.032917,0.00021369,2]
[339257603,1727409054390,-515.45,0.00021369,2]
[339257604,1727409054399,-466.81469278,0.00021369,2]
[339257605,1727409054408,-750.72,0.00021369,2]
[339257606,1727409054417,-1917.79,0.00021369,2]
[339257607,1727409054427,-1370.48,0.00021369,2]
[339257608,1727409054436,-1586.2,0.00021369,2]
[339257609,1727409054446,-1339.74,0.00021369,2]
[339257610,1727409054455,-707.96,0.00021369,2]
[339257611,1727409054464,-21817.09,0.00021369,2]
[339257612,1727409054474,-4192.57,0.00021369,2]
[339257613,1727409054483,-229.64,0.00021369,2]
[339257614,1727409054493,-623.21,0.00021369,2]
[339257615,1727409054505,-500.0,0.00021369,2]
[339257616,1727409054515,-2432.81,0.00021369,2]
[339257617,1727409054524,-2458.29,0.00021369,2]
[339257618,1727409054534,-500.0,0.00021369,2]
[339257619,1727409054543,-621.89,0.00021369,2]
[339257620,1727409054553,-862.2,0.00021369,2]
[339257621,1727409054562,-151.0,0.0002137,2]
[339257622,1727409054571,-3000.0,0.0002137,2]
[339257623,1727409054580,-3000.0,0.0002138,2]
[339257624,1727409054590,-156.738119,0.00021387,2]
[339257625,1727409054599,-216.499211,0.00021387,2]
[339257626,1727409054608,-164.243421,0.00021387,2]
[339257627,1727409054618,-3000.0,0.0002139,2]
[339257628,1727409054627,-3000.0,0.000214,2]
[339257629,1727409054636,-3000.0,0.0002141,2]
[339257630,1727409054645,-3000.0,0.0002142,2]
[339257631,1727409054654,-3000.0,0.0002143,2]
[339257632,1727409054663,-3000.0,0.0002144,2]
[339257633,1727409054673,-151.0,0.00021441,2]
[339257634,1727409054682,-3000.0,0.0002145,2]
[339257635,1727409054690,-3000.0,0.0002146,2]
[339257636,1727409054699,-5356.029793,0.0002147,2]
[339257637,1727409054709,-360.0,0.0002152,2]
[339257638,1727409054719,-2000.0,0.0002152,2]
[339257639,1727409054728,-515.45,0.00021643,2]
[339257640,1727409054737,-750.72,0.00021643,2]
[339257641,1727409054746,-1917.79,0.00021643,2]
[339257642,1727409054756,-1370.48,0.00021643,2]
[339257643,1727409054766,-1586.2,0.00021643,2]
[339257644,1727409054775,-1339.74,0.00021643,2]
[339257645,1727409054784,-707.96,0.00021643,2]
[339257646,1727409054793,-21817.09,0.00021643,2]
[339257647,1727409054893,-4192.57,0.00021643,2]
[339257648,1727409054905,-229.64,0.00021643,2]
[339257649,1727409054915,-623.21,0.00021643,2]
[339257650,1727409054925,-500.0,0.00021643,2]
[339257651,1727409054935,-2432.81,0.00021643,2]
[339257652,1727409054946,-2458.29,0.00021643,2]
[339257653,1727409054957,-500.0,0.00021643,2]
[339257654,1727409054967,-621.89,0.00021643,2]
[339257655,1727409054977,-862.2,0.00021643,2]
[339257656,1727409054986,-151.0,0.00021691,2]
[339257657,1727409054997,-202.20708315,0.00021768,2]
[339257658,1727409055007,-2158.82774869,0.00021779,2]
[339257659,1727409055016,-3033.3119053,0.00021857,2]
[339257660,1727409055026,-2500.0,0.00021874,2]
[339257661,1727409055035,-587.0,0.00021878,2]
[339257662,1727409055046,-2500.0,0.00021883,2]
[339257663,1727409055055,-231.032917,0.0002189,2]
[339257664,1727409055064,-231.032917,0.0002189,2]
[339257665,1727409055073,-1289.17,0.0002189,7]
[339257666,1727409055082,-1289.17,0.0002189,7]
[339257667,1727409055091,-1289.17,0.0002189,7]
[339257668,1727409055100,-1289.17,0.0002189,7]
[339257669,1727409055110,-1289.17,0.0002189,7]
[339257670,1727409055124,-1289.17,0.0002189,7]
[339257671,1727409055133,-1289.17,0.0002189,7]
[339257672,1727409055145,-1289.17,0.0002189,7]
[339257673,1727409055156,-1289.17,0.0002189,7]
[339257674,1727409055167,-1289.17,0.0002189,7]
[339257675,1727409055176,-1289.17,0.0002189,7]
[339257676,1727409055185,-1289.17,0.0002189,7]
[339257677,1727409055195,-1289.17,0.0002189,7]
[339257678,1727409055205,-1289.17,0.0002189,7]
[339257679,1727409055214,-1289.17,0.0002189,7]
[339257680,1727409055223,-1289.17,0.0002189,7]
[339257681,1727409055232,-1289.17,0.0002189,7]
[339257682,1727409055241,-1289.17,0.0002189,7]
[339257683,1727409055251,-1289.17,0.0002189,7]
[339257684,1727409055260,-1289.17,0.0002189,7]
[339257685,1727409055270,-1289.17,0.0002189,7]
[339257686,1727409055279,-1289.17,0.0002189,7]
[339257687,1727409055289,-1289.17,0.0002189,7]
[339257688,1727409055298,-1289.19301149,0.0002189,7]
[339257689,1727409055307,-2500.0,0.00021892,2]
[339257690,1727409055316,-19871.34920318,0.000219,2]
[339257691,1727409055326,-151.0,0.000219,2]
[339257692,1727409055336,-153.38,0.000219,31]
[339257693,1727409055346,-153.38,0.000219,31]
[339257694,1727409055355,-153.38,0.000219,31]
[339257695,1727409055365,-153.38,0.000219,31]
[339257696,1727409055374,-153.38,0.000219,31]
[339257697,1727409055384,-153.38,0.000219,31]
[339257698,1727409055393,-153.38,0.000219,31]
[339257699,1727409055402,-153.38,0.000219,31]
[339257700,1727409055411,-153.38,0.000219,31]
[339257701,1727409055420,-153.38,0.000219,31]
[339257702,1727409055429,-153.38,0.000219,31]
[339257703,1727409055438,-153.38,0.000219,31]
[339257704,1727409055448,-153.38,0.000219,31]
[339257705,1727409055457,-153.38,0.000219,31]
[339257706,1727409055466,-3796.2,0.000219,6]
[339257707,1727409055476,-2500.0,0.000219,2]
[339257708,1727409055485,-2500.0,0.00021909,2]
[339257709,1727409055495,-500.0,0.00021917,120]
[339257710,1727409055505,-500.0,0.00021917,120]
[339257711,1727409055514,-615.28247973,0.00021917,120]
[339257712,1727409055526,-515.45,0.00021917,2]
[339257713,1727409055535,-501.84482045,0.00021917,2]
[339257714,1727409055545,-751.15,0.00021917,2]
[339257715,1727409055555,-751.15,0.00021917,2]
[339257716,1727409055564,-751.15,0.00021917,2]
[339257717,1727409055573,-751.15,0.00021917,2]
[339257718,1727409055582,-751.15,0.00021917,2]
[339257719,1727409055591,-751.15,0.00021917,2]
[339257720,1727409055600,-751.15,0.00021917,2]
[339257721,1727409055611,-751.15,0.00021917,2]
[339257722,1727409055623,-751.15,0.00021917,2]
[339257723,1727409055633,-751.15,0.00021917,2]
[339257724,1727409055642,-751.15,0.00021917,2]
[339257725,1727409055651,-751.15,0.00021917,2]
[339257726,1727409055660,-751.15,0.00021917,2]
[339257727,1727409055670,-751.15,0.00021917,2]
[339257728,1727409055680,-751.15,0.00021917,2]
[339257729,1727409055690,-751.15,0.00021917,2]
[339257730,1727409055700,-751.15,0.00021917,2]
[339257731,1727409055711,-751.15,0.00021917,2]
[339257732,1727409055722,-751.15,0.00021917,2]
[339257733,1727409055733,-751.15,0.00021917,2]
[339257734,1727409055743,-751.15,0.00021917,2]
[339257735,1727409055754,-751.15,0.00021917,2]
[339257736,1727409055763,-751.15,0.00021917,2]
[339257737,1727409055774,-751.29746821,0.00021917,2]
[339257738,1727409055785,-750.72,0.00021917,2]
[339257739,1727409055794,-1917.79,0.00021917,2]
[339257740,1727409055806,-1370.48,0.00021917,2]
[339257741,1727409055817,-1000.0,0.00021917,5]
[339257742,1727409055827,-1000.0,0.00021917,5]
[339257743,1727409055837,-1000.0,0.00021917,5]
[339257744,1727409055847,-1000.0,0.00021917,5]
[339257745,1727409055856,-818.45250916,0.00021917,5]
[339257746,1727409055865,-1586.2,0.00021917,2]
[339257747,1727409055875,-1339.74,0.00021917,2]
[339257748,1727409055884,-707.96,0.00021917,2]
[339257749,1727409055893,-500.0,0.00021917,2]
[339257750,1727409055902,-509.13708894,0.00021917,2]
[339257751,1727409055911,-21817.09,0.00021917,2]
[339257752,1727409055921,-4192.57,0.00021917,2]
[339257753,1727409055931,-229.64,0.00021917,2]
[339257754,1727409055941,-623.21,0.00021917,2]
[339257755,1727409055951,-500.0,0.00021917,2]
[339257756,1727409055961,-2432.81,0.00021917,2]
[339257757,1727409055971,-500.0,0.00021917,2]
[339257758,1727409055984,-2458.29,0.00021917,2]
[339257759,1727409055995,-500.0,0.00021917,2]
[339257760,1727409056005,-621.89,0.00021917,2]
[339257761,1727409056017,-862.2,0.00021917,2]
[339257762,1727409056027,-177.95420112,0.00021918,2]
[339257763,1727409056036,-2500.0,0.00021918,2]
[339257764,1727409056046,-855.93172557,0.00021918,2]
[339257765,1727409056056,-158.67238847,0.0002192,7]
[339257766,1727409056066,-158.67238847,0.0002192,7]
[339257767,1727409056075,-158.67238847,0.0002192,7]
[339257768,1727409056084,-158.67238847,0.0002192,7]
[339257769,1727409056093,-158.67238847,0.0002192,7]
[339257770,1727409056103,-158.67238847,0.0002192,7]